fUSD/lending_fUSD_20240514
["ID","MTS","AMOUNT","RATE_DAILY","PERIOD"]
[327011030,1715711457670,-1500.0,0.00012966,2]
[327011031,1715711457679,-500.0,0.00012969,2]
[327011032,1715711457689,-500.0,0.00012969,2]
[327011033,1715711457698,-500.0,0.00012969,2]
[327011034,1715711457708,-500.0,0.00012969,2]
[327011035,1715711457717,-580.97,0.00012969,2]
[327011036,1715711457729,-500.0,0.00012969,2]
[327011037,1715711457738,-500.0,0.00012969,2]
[327011038,1715711457747,-500.0,0.00012969,2]
[327011039,1715711457756,-500.0,0.00012969,2]
[327011040,1715711457765,-500.0,0.00012969,2]
[327011041,1715711457775,-500.0,0.00012969,2]
[327011042,1715711457786,-904.75,0.00012969,2]
[327011043,1715711457796,-500.0,0.00012969,2]
[327011044,1715711457805,-500.0,0.00012969,2]
[327011045,1715711457815,-376.9699957,0.00012969,2]
[327011046,1715711457824,-500.0,0.00012969,2]
[327011047,1715711457834,-1020.58,0.00012969,2]
[327011048,1715711457843,-151.0,0.00012969,2]
[327011049,1715711457852,-500.0,0.00012969,2]
[327011050,1715711457862,-548.54,0.00012969,2]
[327011051,1715711457872,-500.0,0.00012969,2]
[327011052,1715711457881,-500.0,0.00012969,2]
[327011053,1715711457890,-500.0,0.00012969,2]
[327011054,1715711457899,-500.0,0.00012969,2]
[327011055,1715711457909,-500.0,0.00012969,2]
[327011056,1715711457918,-500.0,0.00012969,2]
[327011057,1715711457928,-300.94750867,0.00012969,2]
[327011058,1715711457938,-500.0,0.00012969,2]
[327011059,1715711457947,-662.1,0.00012969,2]
[327011060,1715711457956,-500.0,0.00012969,2]
[327011061,1715711457966,-500.0,0.00012969,2]
[327011062,1715711457979,-822.35,0.00012969,2]
[327011063,1715711457989,-500.0,0.00012969,2]
[327011064,1715711458002,-753.08,0.00012969,2]
[327011065,1715711458012,-554.04,0.00012969,2]
[327011066,1715711458022,-500.0,0.00012969,2]
[327011067,1715711458032,-1180.78,0.00012969,2]
[327011068,1715711458043,-500.0,0.00012969,2]
[327011069,1715711458053,-500.0,0.00012969,2]
[327011070,1715711458063,-988.27,0.00012969,2]
[327011071,1715711458073,-500.0,0.00012969,2]
[327011072,1715711458084,-949.84,0.00012969,2]
[327011073,1715711458094,-500.0,0.00012969,2]
[327011074,1715711458103,-700.58,0.00012969,2]
[327011075,1715711458114,-500.0,0.00012969,2]
[327011076,1715711458123,-500.0,0.00012969,2]
[327011077,1715711458133,-609.76,0.00012969,2]
[327011078,1715711458144,-714.75,0.00012969,2]
[327011079,1715711458153,-500.0,0.00012969,2]
[327011080,1715711458163,-740.95,0.00012969,2]
[327011081,1715711458174,-500.0,0.00012969,2]
[327011082,1715711458184,-500.0,0.00012969,2]
[327011083,1715711458193,-500.0,0.00012969,2]
[327011084,1715711458203,-500.0,0.00012969,2]
[327011085,1715711458213,-500.0,0.00012969,2]
[327011086,1715711458227,-500.0,0.00012969,2]
[327011087,1715711458237,-500.0,0.00012969,2]
[327011088,1715711458247,-500.0,0.00012969,2]
[327011089,1715711458256,-500.0,0.00012969,2]
[327011090,1715711458265,-950.2,0.00012969,2]
[327011091,1715711458275,-213.781717,0.00012969,2]
[327011092,1715711458284,-213.781717,0.00012969,2]
[327011093,1715711458294,-1141.91,0.00012969,2]
[327011094,1715711458303,-151.0,0.00012969,2]
[327011095,1715711458313,-500.0,0.00012969,2]
[327011096,1715711458322,-348.342309,0.00012969,2]
[327011097,1715711458331,-348.342309,0.00012969,2]
[327011098,1715711458341,-198.854505,0.00012969,2]
[327011099,1715711458351,-198.854505,0.00012969,2]
[327011100,1715711458360,-500.0,0.00012969,2]
[327011101,1715711458370,-500.0,0.00012969,2]
[327011102,1715711458379,-500.0,0.00012969,2]
[327011103,1715711458389,-151.0,0.00012969,2]
[327011104,1715711458398,-500.0,0.00012969,2]
[327011105,1715711458408,-503.12640212,0.00012969,2]
[327011106,1715711458417,-1327.746735,0.00012969,2]
[327011107,1715711458427,-500.0,0.00012969,2]
[327011108,1715711458436,-1327.746735,0.00012969,2]
[327011109,1715711458446,-151.0,0.00012969,2]
[327011110,1715711458456,-1376.25,0.00012969,2]
[327011111,1715711458465,-3390.67,0.00012969,2]
[327011112,1715711458479,-601.325559,0.00012969,2]
[327011113,1715711458488,-601.325559,0.00012969,2]
[327011114,1715711458498,-1755.53,0.00012969,2]
[327011115,1715711458507,-281.27332,0.00012969,2]
[327011116,1715711458516,-281.27332,0.00012969,2]
[327011117,1715711458525,-151.0,0.00012969,2]
[327011118,1715711458535,-500.0,0.00012969,2]
[327011119,1715711458544,-151.0,0.00012969,2]
[327011120,1715711458559,-500.0,0.00012969,2]
[327011121,1715711458570,-151.0,0.00012969,2]
[327011122,1715711458580,-151.0,0.00012969,2]
[327011123,1715711458589,-748.208333,0.00012969,2]
[327011124,1715711458600,-748.208333,0.00012969,2]
[327011125,1715711458610,-500.0,0.00012973,2]
[327011126,1715711458619,-500.0,0.00012973,2]
[327011127,1715711458630,-944.1624178,0.00012973,2]
[327011128,1715711458643,-150.0,0.00012974,2]
[327011129,1715711458653,-960.06,0.00012976,2]
[327011130,1715711458663,-606.42,0.00012976,2]
[327011131,1715711458673,-682.09,0.00012976,2]
[327011132,1715711458682,-500.0,0.00012976,2]
[327011133,1715711458692,-500.0,0.00012976,2]
[327011134,1715711458701,-640.36,0.00012976,2]
[327011135,1715711458711,-500.0,0.00012976,2]
[327011136,1715711458720,-609.76338037,0.00012976,2]
[327011137,1715711458732,-1556.15,0.00012976,2]
[327011138,1715711458741,-500.0,0.00012976,2]
[327011139,1715711458750,-2300.6,0.00012976,2]
[327011140,1715711458759,-1786.46,0.00012976,2]
[327011141,1715711458769,-1970.73,0.00012976,2]
[327011142,1715711458778,-646.7,0.00012976,2]
[327011143,1715711458787,-1077.22,0.00012976,2]
[327011144,1715711458796,-844.19,0.00012976,2]
[327011145,1715711458806,-500.0,0.00012976,2]
[327011146,1715711458815,-500.0,0.00012976,2]
[327011147,1715711458824,-500.0,0.00012976,2]
[327011148,1715711458833,-500.0,0.00012976,2]
[327011149,1715711458843,-500.0,0.00012976,2]
[327011150,1715711458852,-545.49,0.00012976,2]
[327011151,1715711458862,-500.0,0.00012976,2]
[327011152,1715711458871,-540.3,0.00012976,2]
[327011153,1715711458880,-500.0,0.00012976,2]
[327011154,1715711458889,-500.0,0.00012976,2]
[327011155,1715711458899,-500.0,0.00012976,2]
[327011156,1715711458909,-602.46,0.00012976,2]
[327011157,1715711458918,-500.0,0.00012976,2]
[327011158,1715711458927,-500.0,0.00012976,2]
[327011159,1715711458937,-1650.1,0.00012976,2]
[327011160,1715711458947,-500.0,0.00012976,2]
[327011161,1715711458956,-511.98,0.00012976,2]
[327011162,1715711458965,-500.0,0.00012976,2]
[327011163,1715711458976,-500.0,0.00012976,2]
[327011164,1715711458986,-4110.3,0.00012976,2]
[327011165,1715711458995,-515.21,0.00012976,2]
[327011166,1715711459004,-4760.05,0.00012976,2]
[327011167,1715711459015,-500.0,0.00012976,2]
[327011168,1715711459025,-500.0,0.00012976,2]
[327011169,1715711459035,-1787.95,0.00012976,2]
[327011170,1715711459047,-500.0,0.00012976,2]
[327011171,1715711459057,-500.0,0.00012976,2]
[327011172,1715711459067,-736.99,0.00012976,2]
[327011173,1715711459077,-500.0,0.00012976,2]
[327011174,1715711459089,-500.0,0.00012977,2]
[327011175,1715711459098,-500.0,0.00012977,2]
[327011176,1715711459108,-500.0,0.00012977,2]
[327011177,1715711459118,-776.38,0.00012977,2]
[327011178,1715711459128,-296.89691945,0.00012977,2]
[327011179,1715711459138,-500.0,0.00012977,2]
[327011180,1715711459148,-500.0,0.00012977,2]
[327011181,1715711459157,-500.0,0.00012977,2]
[327011182,1715711459167,-394.24586673,0.00012977,2]
[327011183,1715711459176,-500.0,0.00012977,2]
[327011184,1715711459187,-500.0,0.00012977,2]
[327011185,1715711459196,-585.46,0.00012977,2]
[327011186,1715711459205,-500.0,0.00012977,2]
[327011187,1715711459214,-500.0,0.00012977,2]
[327011188,1715711459225,-500.0,0.00012977,2]
[327011189,1715711459234,-838.72,0.00012977,2]
[327011190,1715711459244,-500.0,0.00012977,2]
[327011191,1715711459254,-965.12,0.00012977,2]
[327011192,1715711459263,-500.0,0.00012977,2]
[327011193,1715711459273,-500.0,0.00012977,2]
[327011194,1715711459284,-500.0,0.00012977,2]
[327011195,1715711459293,-500.0,0.00012977,2]
[327011196,1715711459303,-500.0,0.00012977,2]
[327011197,1715711459449,-500.0,0.00012977,2]
[327011198,1715711459459,-500.0,0.00012977,2]
[327011199,1715711459469,-500.0,0.00012977,2]
[327011200,1715711459480,-904.75,0.00012977,2]
[327011201,1715711459489,-500.0,0.00012977,2]
[327011202,1715711459500,-500.0,0.00012977,2]
[327011203,1715711459510,-920.67,0.00012977,2]
[327011204,1715711459519,-430.03030586,0.00012977,2]
[327011205,1715711459529,-500.0,0.00012977,2]
[327011206,1715711459540,-1020.58,0.00012977,2]
[327011207,1715711459550,-1465.67,0.00012977,2]
[327011208,1715711459564,-500.0,0.00012977,2]
[327011209,1715711459573,-500.0,0.00012977,2]
[327011210,1715711459583,-500.0,0.00012977,2]
[327011211,1715711459592,-500.0,0.00012977,2]
[327011212,1715711459603,-298.76827212,0.00012977,2]
[327011213,1715711459897,-201.23172788,0.00012977,2]
[327011214,1715711459907,-500.0,0.00012977,2]
[327011215,1715711459916,-92.57016247,0.00012977,2]
[327011216,1715711459938,-407.42983753,0.00012977,2]
[327011217,1715711459947,-670.26,0.00012977,2]
[327011218,1715711459955,-55.51021293,0.00012977,2]
[327011219,1715711459967,-904.54978707,0.00012977,2]
[327011220,1715711459976,-1131.51,0.00012977,2]
[327011221,1715711459986,-500.0,0.00012977,2]
[327011222,1715711459995,-213.55595717,0.00012977,2]
[327011223,1715711460030,-438.0,0.00012622,2]
[327011224,1715711460040,-176.055379,0.00012876,2]
[327011225,1715711460052,-392.86404283,0.00012977,2]
[327011226,1715711460063,-439.25143662,0.00012977,2]
[327011227,1715711460074,-60.74856338,0.00012977,2]
[327011228,1715711460085,-1849.33,0.00012977,2]
[327011229,1715711460095,-1103.19,0.00012977,2]
[327011230,1715711460105,-250.99446612,0.00012977,2]
[327011231,1715711460120,-431.09553388,0.00012977,2]
[327011232,1715711460129,-500.0,0.00012977,2]
[327011233,1715711460139,-574.88,0.00012977,2]
[327011234,1715711460148,-143.34860771,0.00012977,2]
[327011235,1715711460160,-356.65139229,0.00012977,2]
[327011236,1715711460169,-500.0,0.00012977,2]
[327011237,1715711460179,-151.0,0.00012977,2]
[327011238,1715711460189,-527.2,0.00012977,2]
[327011239,1715711460198,-500.0,0.00012977,2]
[327011240,1715711460209,-775.1,0.00012977,2]
[327011241,1715711460219,-500.0,0.00012977,2]
[327011242,1715711460232,-662.1,0.00012977,2]
[327011243,1715711460242,-451.84578576,0.00012977,2]
[327011244,1715711519412,789.12600427,0.00010958,2]
[327011245,1715711582622,455.53918224,0.00010411,2]
[327011246,1715711582644,143.17081776,0.00010411,2]
[327011252,1715711762880,300.0,0.00010958,2]
[327011254,1715711974485,397.0603664,0.00010859,2]
[327011256,1715712106367,3159.76881584,0.00010859,2]
[327011257,1715712106390,4000.0,0.00010859,2]
[327011258,1715712106411,4000.0,0.00010859,2]
[327011259,1715712106432,3141.62024921,0.00010859,2]
[327011260,1715712112037,-4731.33663683,0.0002,30]
[327011261,1715712112089,-2000.0,0.00024657,30]
[327011262,1715712112111,-2000.0,0.00024657,30]
[327011263,1715712112133,-2000.0,0.00024657,30]
[327011264,1715712112154,-2000.0,0.00024657,30]
[327011265,1715712112176,-2000.0,0.00024657,30]
[327011266,1715712112198,-2000.0,0.00024657,30]
[327011267,1715712112220,-2000.0,0.00024657,30]
[327011268,1715712112243,-2000.0,0.00024657,30]
[327011269,1715712112264,-2000.0,0.00024657,30]
[327011270,1715712112286,-2000.0,0.00024657,30]
[327011271,1715712112309,-2000.0,0.00024657,30]
[327011272,1715712112332,-2000.0,0.00024657,30]
[327011273,1715712112354,-2000.0,0.00024657,30]
[327011274,1715712112378,-2000.0,0.00024657,30]
[327011275,1715712112399,-2000.0,0.00024657,30]
[327011276,1715712112422,-2000.0,0.00024657,30]
[327011277,1715712112443,-2000.0,0.00024657,30]
[327011278,1715712112465,-2000.0,0.00024657,30]
[327011279,1715712112487,-2000.0,0.00024657,30]
[327011280,1715712112510,-2000.0,0.00024657,30]
[327011281,1715712112533,-1359.42412319,0.00024657,30]
[327011282,1715712112554,-160.42379096,0.00024657,30]
[327011283,1715712112580,-586.31830975,0.00025,30]
[327011284,1715712112612,-1208.0,0.00026551,30]
[327011285,1715712112637,-214.24730624,0.0002739,30]
[327011286,1715712112659,-2000.0,0.00027397,30]
[327011287,1715712112682,-2000.0,0.00027397,30]
[327011288,1715712112703,-2000.0,0.00027397,30]
[327011289,1715712112726,-2000.0,0.00027397,30]
[327011290,1715712112750,-2000.0,0.00027397,30]
[327011291,1715712112773,-2000.0,0.00027397,30]
[327011292,1715712112796,-2000.0,0.00027397,30]
[327011293,1715712112820,-2000.0,0.00027397,30]
[327011294,1715712112841,-2000.0,0.00027397,30]
[327011295,1715712112863,-2000.0,0.00027397,30]
[327011296,1715712112885,-2000.0,0.00027397,30]
[327011297,1715712112908,-1153.15174663,0.00027397,30]
[327011298,1715712112934,-237.09016992,0.00027616,30]
[327011299,1715712112959,-207.52908667,0.00028,30]
[327011300,1715712113005,-213.04112979,0.0002988,30]
[327011301,1715712113032,-612.3876415,0.0003,30]
[327011302,1715712113056,-164.30878411,0.0003,30]
[327011303,1715712113079,-1000.0,0.0003,120]
[327011304,1715712113101,-307.50703687,0.0003,120]
[327011305,1715712113124,-665.49,0.00030027,30]
[327011306,1715712113152,-15119.27,0.000315,30]
[327011307,1715712113175,-1000.0,0.00032,120]
[327011308,1715712113197,-1385.0,0.00032,120]
[327011309,1715712113220,-2416.0,0.0003216,120]
[327011310,1715712113244,-2500.0,0.000325,30]
[327011311,1715712113271,-750.0,0.00032876,30]
[327011312,1715712113294,-776.63971863,0.00032876,30]
[327011313,1715712113319,-679.87746356,0.000329,30]
[327011314,1715712113341,-79985.31837341,0.000329,30]
[327011315,1715712113365,-665.49,0.00033143,30]
[327011316,1715712113387,-2737.48,0.00033151,120]
[327011317,1715712113408,-750.8,0.00033151,120]
[327011318,1715712113639,-1000.0,0.00034,120]
[327011319,1715712113663,-2500.0,0.000345,30]
[327011320,1715712113690,-300.0,0.00034704,120]
[327011321,1715712113724,-436.22786997,0.00035,30]
[327011322,1715712113748,-914.66944228,0.00035,30]
[327011323,1715712113771,-3088.67341842,0.00035,30]
[327011324,1715712113793,-159.64658989,0.00035,30]
[327011325,1715712113820,-1659.33189184,0.00035,30]
[327011326,1715712113844,-2500.0,0.00035,30]
[327011327,1715712113868,-2500.0,0.00035,30]
[327011328,1715712113890,-2500.0,0.00035,30]
[327011329,1715712113913,-2500.0,0.00035,30]
[327011330,1715712113935,-944.63998896,0.00035,36]
[327011331,1715712113959,-300.0,0.00035385,120]
[327011332,1715712113982,-1166.31970411,0.000356,30]
[327011333,1715712114010,-3600.0,0.00036,30]
[327011334,1715712114032,-15500.00350074,0.00036,30]
[327011335,1715712114055,-150.0,0.00036,30]
[327011336,1715712114078,-15500.0,0.00036,30]
[327011337,1715712114101,-429.58033732,0.00036065,120]
[327011338,1715712114125,-665.49,0.00036258,30]
[327011339,1715712114152,-39143.38917854,0.00036498,36]
[327011340,1715712114179,-900.0,0.00037,38]
[327011341,1715712114203,-2265.0,0.00037,60]
[327011342,1715712114229,-2500.0,0.000375,30]
[327011343,1715712114261,-2459.52910817,0.00038,30]
[327011344,1715712114287,-517.39763141,0.00038,120]
[327011345,1715712114310,-155.0,0.00038,60]
[327011346,1715712114338,-850.78436105,0.00038,30]
[327011347,1715712114363,-500000.0,0.00038,30]
[327011348,1715712114386,-1000.0,0.00038,120]
[327011349,1715712114409,-2000.0,0.00038,30]
[327011350,1715712114432,-2000.0,0.00038356,120]
[327011351,1715712114455,-2000.0,0.00038356,120]
[327011352,1715712114477,-2000.0,0.00038356,120]
[327011353,1715712114503,-2000.0,0.00038356,120]
[327011354,1715712114526,-2000.0,0.00038356,120]
[327011355,1715712114548,-2000.0,0.00038356,120]
[327011356,1715712114571,-2000.0,0.00038356,120]
[327011357,1715712114593,-2000.0,0.00038356,120]
[327011358,1715712114616,-2000.0,0.00038356,120]
[327011359,1715712114639,-2000.0,0.00038356,120]
[327011360,1715712114662,-2000.0,0.00038356,120]
[327011361,1715712114683,-2000.0,0.00038356,120]
[327011362,1715712114705,-1000.0,0.00038356,30]
[327011363,1715712114731,-2382.36915922,0.000384,33]
[327011364,1715712114757,-1000.0,0.00038661,30]
[327011365,1715712114781,-884.35603427,0.000389,30]
[327011366,1715712114805,-1000.0,0.00038904,120]
[327011367,1715712114828,-1000.0,0.00038965,30]
[327011368,1715712114851,-1000.0,0.00039,120]
[327011369,1715712114872,-801.83230981,0.00039,120]
[327011370,1715712114894,-2000.0,0.00039,30]
[327011371,1715712114917,-1000.0,0.00039269,30]
[327011372,1715712114939,-665.49,0.00039374,30]
[327011373,1715712114960,-562.89134692,0.000394,30]
[327011374,1715712114982,-2500.0,0.000395,60]
[327011375,1715712115006,-1000.0,0.00039574,30]
[327011376,1715712115029,-307.73770967,0.000396,120]
[327011377,1715712115051,-1000.0,0.00039878,30]
[327011378,1715712115073,-767.12751641,0.0003998,30]
[327011379,1715712115096,-810.0,0.0003998,30]
[327011380,1715712115118,-406.0,0.00039986,120]
[327011381,1715712115144,-50000.0,0.0004,30]
[327011382,1715712115169,-477.12749073,0.0004,30]
[327011383,1715712115191,-2882.67513818,0.0004,30]
[327011384,1715712115213,-1394.93551311,0.0004,30]
[327011385,1715712115235,-407.69977072,0.0004,30]
[327011386,1715712115260,-905.81923496,0.0004,30]
[327011387,1715712115282,-1205.78976745,0.0004,30]
[327011388,1715712115307,-1629.0,0.0004,30]
[327011389,1715712115339,-1193.62109944,0.0004,30]
[327011390,1715712115362,-191.86235512,0.0004,30]
[327011391,1715712115384,-2000.0,0.0004,30]
[327011392,1715712115406,-500.0,0.0004,30]
[327011393,1715712115428,-195.17964919,0.0004,120]
[327011394,1715712115451,-1531.93134579,0.0004,60]
[327011395,1715712115473,-1851.82818753,0.0004,90]
[327011396,1715712115496,-714.18199183,0.0004,60]
[327011397,1715712115517,-1239.78672355,0.0004,120]
[327011398,1715712115540,-3088.06755221,0.0004,120]
[327011399,1715712115562,-2006.51593254,0.0004,120]
[327011400,1715712115583,-1002.76409937,0.0004,120]
[327011401,1715712115606,-228.24952788,0.0004,120]
[327011402,1715712115630,-2499.43832392,0.0004,120]
[327011403,1715712115651,-898.90814029,0.0004,120]
[327011404,1715712115674,-500000.0,0.0004,30]
[327011405,1715712115695,-1000.0,0.0004,120]
[327011406,1715712115716,-2665.0,0.0004,60]
[327011407,1715712115745,-2000.0,0.0004,30]
[327011408,1715712115768,-1902.16,0.0004,120]
[327011409,1715712115790,-309.6429966,0.0004001,30]
[327011410,1715712115813,-1000.0,0.00040183,30]
[327011411,1715712115837,-8800.0,0.000402,120]
[327011412,1715712115860,-8800.0,0.000402,120]
[327011413,1715712115885,-8800.0,0.000402,120]
[327011414,1715712115909,-8800.0,0.000402,120]
[327011415,1715712115931,-8800.0,0.000402,120]
[327011416,1715712115954,-2492.6,0.00040327,79]
[327011417,1715712115976,-1000.0,0.00040487,30]
[327011418,1715712115999,-1000.0,0.00040791,30]
[327011419,1715712116021,-638.46344293,0.0004088,120]
[327011420,1715712116182,-1167.70620148,0.00040993,120]
[327011421,1715712116210,-50000.0,0.00041,31]
[327011422,1715712116233,-249.48358833,0.00041,30]
[327011423,1715712116281,-4789.23447879,0.00041,30]
[327011424,1715712116308,-10012.67296798,0.00041,30]
[327011425,1715712116335,-2065.60706137,0.00041,120]
[327011426,1715712116361,-2000.0,0.00041,30]
[327011427,1715712116385,-2672.0,0.00041,120]
[327011428,1715712116408,-3004.57520482,0.00041041,120]
[327011429,1715712116432,-544.53015,0.00041088,30]
[327011430,1715712116455,-1000.0,0.00041095,30]
[327011431,1715712116479,-1000.0,0.00041095,30]
[327011432,1715712116502,-1000.0,0.00041095,30]
[327011433,1715712116526,-1000.0,0.00041095,30]
[327011434,1715712116550,-1000.0,0.00041095,30]
[327011435,1715712116573,-1000.0,0.00041095,30]
[327011436,1715712116596,-1000.0,0.00041095,30]
[327011437,1715712116619,-1000.0,0.00041095,30]
[327011438,1715712116643,-1000.0,0.00041095,30]
[327011439,1715712116669,-1000.0,0.00041095,30]
[327011440,1715712116692,-1000.0,0.00041095,30]
[327011441,1715712116715,-1000.0,0.00041095,30]
[327011442,1715712116744,-1000.0,0.00041095,30]
[327011443,1715712116771,-355.04902241,0.00041095,30]
[327011444,1715712116796,-510.0,0.00041095,120]
[327011445,1715712116823,-1000.0,0.00041095,30]
[327011446,1715712116847,-1000.0,0.00041095,30]
[327011447,1715712116870,-521.17029073,0.00041095,30]
[327011448,1715712116893,-1290.95,0.00041095,30]
[327011449,1715712116915,-1290.95,0.00041095,30]
[327011450,1715712116939,-1290.95,0.00041095,30]
[327011451,1715712116969,-1290.95,0.00041095,30]
[327011452,1715712116993,-1290.95,0.00041095,30]
[327011453,1715712117018,-1290.95,0.00041095,30]
[327011454,1715712117042,-1290.95,0.00041095,30]
[327011455,1715712117065,-1290.95,0.00041095,30]
[327011456,1715712117089,-1290.95,0.00041095,30]
[327011457,1715712117114,-1290.95,0.00041095,30]
[327011458,1715712117138,-1290.95,0.00041095,30]
[327011459,1715712117162,-1290.95,0.00041095,30]
[327011460,1715712117185,-1290.95,0.00041095,30]
[327011461,1715712117208,-1290.95,0.00041095,30]
[327011462,1715712117232,-1290.95,0.00041095,30]
[327011463,1715712117256,-1290.95,0.00041095,30]
[327011464,1715712117279,-1290.95,0.00041095,30]
[327011465,1715712117302,-1290.95,0.00041095,30]
[327011466,1715712117325,-1290.95,0.00041095,30]
[327011467,1715712117347,-1290.95,0.00041095,30]
[327011468,1715712117370,-1290.95,0.00041095,30]
[327011469,1715712117393,-1290.95,0.00041095,30]
[327011470,1715712117416,-1290.95,0.00041095,30]
[327011471,1715712117440,-1291.13501844,0.00041095,30]
[327011472,1715712117463,-2000.0,0.00041096,30]
[327011473,1715712117486,-1136.51422623,0.00041096,30]
[327011474,1715712117510,-544.53015,0.00041288,30]
[327011475,1715712117533,-615.05847778,0.00041369,120]
[327011476,1715712117556,-1797.358999,0.0004148,120]
[327011477,1715712117580,-544.53015,0.00041488,30]
[327011478,1715712117603,-500.0,0.00041492,30]
[327011479,1715712117626,-500.0,0.00041492,30]
[327011480,1715712117648,-233.78340929,0.000415,30]
[327011481,1715712117672,-621.98148848,0.000415,60]
[327011482,1715712117696,-2500.0,0.000415,60]
[327011483,1715712117719,-544.53015,0.00041688,30]
[327011484,1715712117746,-595.98236543,0.000419,111]
[327011485,1715712117771,-50000.0,0.00042,32]
[327011486,1715712117794,-40393.23705542,0.00042,30]
[327011487,1715712117818,-2020.83,0.00042,30]
[327011488,1715712117840,-2085.56,0.00042,30]
[327011489,1715712117862,-2000.5,0.00042,30]
[327011490,1715712117884,-1012.0,0.00042,60]
[327011491,1715712117906,-3200.94434481,0.00042,120]
[327011492,1715712117928,-3172.67955962,0.00042,120]
[327011493,1715712117950,-4263.18585732,0.00042,35]
[327011494,1715712117972,-2500.0,0.00042,120]
[327011495,1715712117995,-25681.26,0.00042,32]
[327011496,1715712118017,-500.0,0.0004204,30]
[327011497,1715712118040,-500.0,0.0004204,30]
[327011498,1715712118062,-544.53015,0.00042088,30]
[327011499,1715712118086,-1035.0,0.00042281,30]
[327011500,1715712118110,-544.53015,0.00042288,30]
[327011501,1715712118133,-994.466992,0.000424,120]
[327011502,1715712118156,-544.53015,0.00042488,30]
[327011503,1715712118179,-665.49,0.00042489,30]
[327011504,1715712118201,-500.0,0.00042588,30]
[327011505,1715712118224,-500.0,0.00042588,30]
[327011506,1715712118247,-569.79711227,0.0004267,30]
[327011507,1715712118268,-544.53015,0.00042688,30]
[327011508,1715712118290,-438.25135492,0.00042698,120]
[327011509,1715712118312,-258.61838945,0.00042698,90]
[327011510,1715712118335,-342.98449634,0.00042698,90]
[327011511,1715712118358,-170.96,0.0004274,91]
[327011512,1715712118380,-394.6539042,0.000429,30]
[327011513,1715712118402,-2493.01867192,0.0004299,120]
[327011514,1715712118429,-50000.0,0.00043,33]
[327011515,1715712118455,-2789.98833281,0.00043,30]
[327011516,1715712118478,-2000.0,0.00043,30]
[327011517,1715712118501,-3265.04316779,0.00043,30]
[327011518,1715712118522,-500.0,0.00043,30]
[327011519,1715712118544,-511.4995666,0.00043,30]
[327011520,1715712118566,-2500.0,0.00043,120]
[327011521,1715712118589,-500.0,0.00043136,30]
[327011522,1715712118613,-500.0,0.00043136,30]
[327011523,1715712118637,-2500.0,0.00043234,31]
[327011524,1715712118874,-2500.0,0.000435,60]
[327011525,1715712118899,-2719.2,0.00043653,98]
[327011526,1715712118922,-500.0,0.00043684,30]
[327011527,1715712118943,-500.0,0.00043684,30]
[327011528,1715712118966,-200.0,0.00043836,30]
[327011529,1715712118989,-406.0,0.00043986,120]
[327011530,1715712119018,-50000.0,0.00044,34]
[327011531,1715712119041,-607.84717865,0.00044,30]
[327011532,1715712119063,-2000.0,0.00044,30]
[327011533,1715712119086,-1463.476,0.00044,120]
[327011534,1715712119107,-1000.0,0.00044,120]
[327011535,1715712119129,-30000.0,0.00044,120]
[327011536,1715712119151,-2500.0,0.00044,120]